fUST/lending_fUST_20260420
["ID","MTS","AMOUNT","RATE_DAILY","PERIOD"]
[420883333,1776697841929,-500.0,0.00013698,2]
[420883334,1776697841938,-500.0,0.00013698,2]
[420883335,1776697841947,-500.0,0.00013698,2]
[420883336,1776697841956,-500.0,0.00013698,2]
[420883337,1776697841965,-1006.77,0.00013698,2]
[420883338,1776697841975,-500.0,0.00013698,2]
[420883339,1776697841984,-770.99,0.00013698,2]
[420883340,1776697841993,-620.25,0.00013698,2]
[420883341,1776697842002,-500.0,0.00013698,2]
[420883342,1776697842011,-500.0,0.00013698,2]
[420883343,1776697842021,-500.0,0.00013698,2]
[420883344,1776697842030,-1256.74,0.00013698,2]
[420883345,1776697842039,-500.0,0.00013698,2]
[420883347,1776697842048,-500.0,0.00013698,2]
[420883348,1776697842057,-500.0,0.00013698,2]
[420883349,1776697842065,-500.0,0.00013698,2]
[420883350,1776697842074,-1379.71,0.00013698,2]
[420883351,1776697842084,-837.44,0.00013698,2]
[420883352,1776697842093,-637.93,0.00013698,2]
[420883353,1776697842103,-3026.39,0.00013698,2]
[420883354,1776697842113,-500.0,0.00013698,2]
[420883355,1776697842123,-500.0,0.00013698,2]
[420883356,1776697842132,-579.65,0.00013698,2]
[420883357,1776697842141,-500.0,0.00013698,2]
[420883358,1776697842150,-500.0,0.00013698,2]
[420883359,1776697842159,-5061.72,0.00013698,2]
[420883360,1776697842168,-704.3,0.00013698,2]
[420883361,1776697842179,-500.0,0.00013698,2]
[420883362,1776697842188,-7812.14,0.00013698,2]
[420883363,1776697842197,-7538.05,0.00013698,2]
[420883364,1776697842206,-500.0,0.00013698,2]
[420883365,1776697842215,-848.1,0.00013698,2]
[420883366,1776697842224,-500.0,0.00013698,2]
[420883367,1776697842234,-500.0,0.00013698,2]
[420883368,1776697842243,-500.0,0.00013698,2]
[420883369,1776697842253,-2149.31,0.00013698,2]
[420883370,1776697842262,-627.86,0.00013698,2]
[420883371,1776697842271,-637.71,0.00013698,2]
[420883372,1776697842280,-500.0,0.00013698,2]
[420883373,1776697842289,-6266.9,0.00013698,2]
[420883374,1776697842298,-7087.87,0.00013698,2]
[420883375,1776697842307,-500.0,0.00013698,2]
[420883376,1776697842317,-500.0,0.00013698,2]
[420883377,1776697842326,-971.71,0.00013698,2]
[420883378,1776697842335,-11259.56,0.00013698,2]
[420883379,1776697842345,-1935.8,0.00013698,2]
[420883380,1776697842355,-500.0,0.00013698,2]
[420883381,1776697842364,-715.37,0.00013698,2]
[420883382,1776697842373,-500.0,0.00013698,2]
[420883383,1776697842382,-500.0,0.00013698,2]
[420883384,1776697842391,-500.0,0.00013698,2]
[420883385,1776697842401,-7668.58,0.00013698,2]
[420883386,1776697842410,-500.0,0.00013698,2]
[420883387,1776697842420,-500.0,0.00013698,2]
[420883388,1776697842429,-500.0,0.00013698,2]
[420883389,1776697842438,-2643.17,0.00013698,2]
[420883390,1776697842447,-885.04,0.00013698,2]
[420883391,1776697842456,-500.0,0.00013698,2]
[420883392,1776697842466,-500.0,0.00013698,2]
[420883393,1776697842476,-4773.32,0.00013698,2]
[420883394,1776697842487,-500.0,0.00013698,2]
[420883395,1776697842496,-1953.07,0.00013698,2]
[420883396,1776697842505,-1148.87,0.00013698,2]
[420883397,1776697842514,-6836.31,0.00013698,2]
[420883398,1776697842523,-1762.73,0.00013698,2]
[420883399,1776697842532,-579.88,0.00013698,2]
[420883400,1776697842542,-500.0,0.00013698,2]
[420883401,1776697842551,-500.0,0.00013698,2]
[420883402,1776697842560,-739.06,0.00013698,2]
[420883403,1776697842569,-801.31,0.00013698,2]
[420883404,1776697842578,-2060.53,0.00013698,2]
[420883405,1776697842588,-500.0,0.00013698,2]
[420883406,1776697842596,-500.0,0.00013698,2]
[420883407,1776697842606,-500.0,0.00013698,2]
[420883408,1776697842615,-526.34,0.00013698,2]
[420883409,1776697842624,-500.0,0.00013698,2]
[420883410,1776697842633,-4284.21,0.00013698,2]
[420883411,1776697842642,-500.0,0.00013698,2]
[420883412,1776697842651,-500.0,0.00013698,2]
[420883413,1776697842660,-500.0,0.00013698,2]
[420883414,1776697842670,-500.0,0.00013698,2]
[420883415,1776697842679,-526.37,0.00013698,2]
[420883416,1776697842689,-500.0,0.00013698,2]
[420883417,1776697842698,-1760.36,0.00013698,2]
[420883418,1776697842707,-2347.23,0.00013698,2]
[420883419,1776697842717,-1333.42,0.00013698,2]
[420883420,1776697842727,-3594.48,0.00013698,2]
[420883421,1776697842736,-500.0,0.00013698,2]
[420883422,1776697842745,-500.0,0.00013698,2]
[420883423,1776697842755,-3450.81,0.00013698,2]
[420883424,1776697842764,-1177.09,0.00013698,2]
[420883425,1776697842773,-500.0,0.00013698,2]
[420883426,1776697842782,-2847.71,0.00013698,2]
[420883427,1776697842791,-630.91,0.00013698,2]
[420883428,1776697842800,-1156.2,0.00013698,2]
[420883429,1776697842809,-3459.64,0.00013698,2]
[420883430,1776697842818,-4857.33,0.00013698,2]
[420883431,1776697842828,-1683.9,0.00013698,2]
[420883432,1776697842837,-1156.56,0.00013698,2]
[420883433,1776697842846,-3548.37,0.00013698,2]
[420883434,1776697842855,-3285.0,0.00013698,2]
[420883435,1776697842864,-500.0,0.00013698,2]
[420883436,1776697842873,-30083.02,0.00013698,2]
[420883437,1776697842882,-1070.11,0.00013698,2]
[420883438,1776697842891,-500.0,0.00013698,2]
[420883439,1776697842900,-2382.24,0.00013698,2]
[420883440,1776697842910,-500.0,0.00013698,2]
[420883441,1776697842919,-636.81,0.00013698,2]
[420883442,1776697842931,-695.0,0.00013698,2]
[420883443,1776697842940,-500.0,0.00013698,2]
[420883444,1776697842951,-500.0,0.00013698,2]
[420883445,1776697842960,-500.0,0.00013698,2]
[420883446,1776697842970,-1586.07,0.00013698,2]
[420883447,1776697842979,-2590.88,0.00013698,2]
[420883448,1776697842989,-2217.75,0.00013698,2]
[420883449,1776697842998,-966.01,0.00013698,2]
[420883450,1776697843008,-1190.0,0.00013699,2]
[420883451,1776697843017,-500.0,0.00013699,2]
[420883452,1776697843026,-500.0,0.00013699,2]
[420883453,1776697843036,-500.0,0.00013699,2]
[420883454,1776697843046,-1000.0,0.00013699,2]
[420883455,1776697843055,-1500.0,0.00013699,2]
[420883456,1776697843064,-1500.708666,0.00013699,2]
[420883457,1776697843074,-578.20924308,0.00013712,2]
[420883458,1776697843083,-2208.0,0.00013757,2]
[420883459,1776697843093,-645.0,0.00013757,2]
[420883461,1776697843103,-1408.0,0.00013757,2]
[420883463,1776697843112,-599.60298507,0.00013767,2]
[420883464,1776697843122,-3657.94414224,0.00013815,2]
[420883465,1776697843131,-2000.0,0.00013816,2]
[420883466,1776697843140,-2000.0,0.00013816,2]
[420883467,1776697843149,-2000.0,0.00013816,2]
[420883468,1776697843159,-621.78829552,0.00013822,2]
[420883469,1776697843168,-644.79446246,0.00013877,2]
[420883470,1776697843179,-668.65185757,0.00013932,2]
[420883471,1776697843189,-160.0,0.00013961,2]
[420883473,1776697843199,-2545.96396,0.00013961,2]
[420883475,1776697843208,-4931.92792,0.00013961,2]
[420883477,1776697843218,-160.0,0.00013961,7]
[420883478,1776697843227,-546.272841,0.00013961,7]
[420883479,1776697843236,-932.545682,0.00013961,7]
[420883481,1776697843246,-160.000008,0.00013961,2]
[420883483,1776697843255,-160.0,0.00013961,7]
[420883485,1776697843264,-878.698615,0.00013961,7]
[420883489,1776697843274,-1597.39723,0.00013961,7]
[420883492,1776697843283,-160.0,0.00013961,7]
[420883496,1776697843293,-8353.704349,0.00013961,7]
[420883500,1776697843302,-16547.408699,0.00013961,7]
[420883503,1776697843311,-500.0,0.00013972,2]
[420883504,1776697843320,-577.7,0.00013972,2]
[420883508,1776697843329,-554.97,0.00013972,2]
[420883510,1776697843339,-500.0,0.00013972,2]
[420883512,1776697843348,-1178.96,0.00013972,2]
[420883513,1776697843357,-500.0,0.00013972,2]
[420883515,1776697843367,-500.0,0.00013972,2]
[420883516,1776697843376,-500.0,0.00013972,2]
[420883517,1776697843386,-500.0,0.00013972,2]
[420883518,1776697843396,-668.58,0.00013972,2]
[420883519,1776697843405,-642.42,0.00013972,2]
[420883520,1776697843415,-500.0,0.00013972,2]
[420883521,1776697843424,-500.0,0.00013972,2]
[420883522,1776697843433,-500.0,0.00013972,2]
[420883523,1776697843443,-500.0,0.00013972,2]
[420883524,1776697843452,-563.13,0.00013972,2]
[420883525,1776697843461,-645.93,0.00013972,2]
[420883527,1776697843470,-568.36,0.00013972,2]
[420883528,1776697843480,-502.66,0.00013972,2]
[420883529,1776697843490,-500.0,0.00013972,2]
[420883530,1776697843500,-553.5,0.00013972,2]
[420883531,1776697843509,-620.23,0.00013972,2]
[420883532,1776697843519,-500.0,0.00013972,2]
[420883533,1776697843528,-631.41,0.00013972,2]
[420883534,1776697843538,-500.0,0.00013972,2]
[420883535,1776697843547,-552.19,0.00013972,2]
[420883536,1776697843557,-500.0,0.00013972,2]
[420883537,1776697843566,-776.9,0.00013972,2]
[420883538,1776697843576,-664.2,0.00013972,2]
[420883540,1776697843585,-1848.07,0.00013972,2]
[420883541,1776697843594,-500.0,0.00013972,2]
[420883542,1776697843603,-500.0,0.00013972,2]
[420883543,1776697843613,-344.02213768,0.00013972,2]
[420883544,1776697843623,-500.0,0.00013972,2]
[420883545,1776697843632,-548.36,0.00013972,2]
[420883546,1776697843641,-500.0,0.00013972,2]
[420883547,1776697843651,-500.0,0.00013972,2]
[420883548,1776697843660,-500.0,0.00013972,2]
[420883549,1776697843670,-500.0,0.00013972,2]
[420883550,1776697843680,-500.0,0.00013972,2]
[420883552,1776697843690,-500.0,0.00013972,2]
[420883554,1776697843699,-500.0,0.00013972,2]
[420883555,1776697843709,-545.57,0.00013972,2]
[420883556,1776697843718,-500.0,0.00013972,2]
[420883557,1776697843728,-500.0,0.00013972,2]
[420883558,1776697843737,-500.0,0.00013972,2]
[420883560,1776697843747,-500.0,0.00013972,2]
[420883561,1776697843756,-500.0,0.00013972,2]
[420883562,1776697843766,-500.0,0.00013972,2]
[420883563,1776697843775,-982.1,0.00013972,2]
[420883564,1776697843784,-155.23350661,0.00013972,2]
[420883565,1776697843793,-1263.53,0.00013972,2]
[420883566,1776697843803,-500.0,0.00013972,2]
[420883567,1776697843812,-500.0,0.00013972,2]
[420883568,1776697843821,-500.0,0.00013972,2]
[420883569,1776697843831,-500.0,0.00013972,2]
[420883570,1776697843840,-1006.77,0.00013972,2]
[420883571,1776697843849,-500.0,0.00013972,2]
[420883572,1776697843858,-770.99,0.00013972,2]
[420883573,1776697843867,-620.25,0.00013972,2]
[420883574,1776697843876,-500.0,0.00013972,2]
[420883575,1776697843886,-500.0,0.00013972,2]
[420883576,1776697843895,-500.0,0.00013972,2]
[420883577,1776697843904,-1256.74,0.00013972,2]
[420883578,1776697843914,-500.0,0.00013972,2]
[420883579,1776697843923,-500.0,0.00013972,2]
[420883580,1776697843932,-243.20095783,0.00013972,2]
[420883581,1776697843941,-500.0,0.00013972,2]
[420883582,1776697843951,-1379.71,0.00013972,2]
[420883583,1776697843961,-837.44,0.00013972,2]
[420883584,1776697843970,-637.93,0.00013972,2]
[420883585,1776697843980,-3026.39,0.00013972,2]
[420883586,1776697843989,-500.0,0.00013972,2]
[420883587,1776697843998,-500.0,0.00013972,2]
[420883588,1776697844008,-579.65,0.00013972,2]
[420883589,1776697844017,-500.0,0.00013972,2]
[420883590,1776697844026,-500.0,0.00013972,2]
[420883591,1776697844036,-5061.72,0.00013972,2]
[420883592,1776697844045,-704.3,0.00013972,2]
[420883593,1776697844055,-500.0,0.00013972,2]
[420883594,1776697844064,-7812.14,0.00013972,2]
[420883595,1776697844073,-7538.05,0.00013972,2]
[420883597,1776697844082,-500.0,0.00013972,2]
[420883598,1776697844091,-848.1,0.00013972,2]
[420883600,1776697844100,-500.0,0.00013972,2]
[420883602,1776697844110,-500.0,0.00013972,2]
[420883604,1776697844119,-500.0,0.00013972,2]
[420883605,1776697844129,-2149.31,0.00013972,2]
[420883607,1776697844138,-627.86,0.00013972,2]
[420883608,1776697844147,-637.71,0.00013972,2]
[420883609,1776697844337,-6266.9,0.00013972,2]
[420883610,1776697844347,-7087.87,0.00013972,2]
[420883611,1776697844357,-500.0,0.00013972,2]
[420883612,1776697844366,-500.0,0.00013972,2]
[420883613,1776697844376,-971.71,0.00013972,2]
[420883614,1776697844386,-11259.56,0.00013972,2]
[420883615,1776697844395,-1935.8,0.00013972,2]
[420883616,1776697844404,-500.0,0.00013972,2]
[420883617,1776697844414,-715.37,0.00013972,2]
[420883618,1776697844424,-500.0,0.00013972,2]
[420883619,1776697844434,-500.0,0.00013972,2]
[420883620,1776697844444,-500.0,0.00013972,2]
[420883621,1776697844454,-7668.58,0.00013972,2]
[420883622,1776697844464,-500.0,0.00013972,2]
[420883623,1776697844473,-500.0,0.00013972,2]
[420883624,1776697844482,-500.0,0.00013972,2]
[420883625,1776697844493,-2643.17,0.00013972,2]
[420883626,1776697844502,-885.04,0.00013972,2]
[420883627,1776697844512,-500.0,0.00013972,2]
[420883628,1776697844522,-500.0,0.00013972,2]
[420883629,1776697844531,-4773.32,0.00013972,2]
[420883630,1776697844541,-500.0,0.00013972,2]
[420883631,1776697844551,-1953.07,0.00013972,2]
[420883632,1776697844560,-1148.87,0.00013972,2]
[420883633,1776697844570,-6836.31,0.00013972,2]
[420883634,1776697844579,-1762.73,0.00013972,2]
[420883635,1776697844589,-579.88,0.00013972,2]
[420883636,1776697844598,-500.0,0.00013972,2]
[420883637,1776697844608,-739.06,0.00013972,2]
[420883638,1776697844617,-801.31,0.00013972,2]
[420883639,1776697844627,-2060.53,0.00013972,2]
[420883640,1776697844636,-500.0,0.00013972,2]
[420883641,1776697844646,-500.0,0.00013972,2]
[420883642,1776697844656,-500.0,0.00013972,2]
[420883643,1776697844665,-526.34,0.00013972,2]
[420883644,1776697844675,-500.0,0.00013972,2]
[420883645,1776697844684,-4284.21,0.00013972,2]
[420883646,1776697844693,-500.0,0.00013972,2]
[420883647,1776697844702,-500.0,0.00013972,2]
[420883648,1776697844712,-500.0,0.00013972,2]
[420883649,1776697844721,-500.0,0.00013972,2]
[420883650,1776697844730,-526.37,0.00013972,2]
[420883651,1776697844740,-500.0,0.00013972,2]
[420883652,1776697844749,-1760.36,0.00013972,2]
[420883653,1776697844758,-2347.23,0.00013972,2]
[420883654,1776697844767,-1333.42,0.00013972,2]
[420883655,1776697844777,-3594.48,0.00013972,2]
[420883656,1776697844787,-500.0,0.00013972,2]
[420883657,1776697844796,-500.0,0.00013972,2]
[420883658,1776697844806,-3450.81,0.00013972,2]
[420883659,1776697844815,-1177.09,0.00013972,2]
[420883660,1776697844824,-500.0,0.00013972,2]
[420883661,1776697844834,-2847.71,0.00013972,2]
[420883662,1776697844844,-630.91,0.00013972,2]
[420883663,1776697844853,-1156.2,0.00013972,2]
[420883664,1776697844863,-3459.64,0.00013972,2]
[420883665,1776697844872,-4857.33,0.00013972,2]
[420883666,1776697844881,-1683.9,0.00013972,2]
[420883667,1776697844891,-1156.56,0.00013972,2]
[420883668,1776697844900,-3548.37,0.00013972,2]
[420883669,1776697844910,-3285.0,0.00013972,2]
[420883670,1776697844919,-30083.02,0.00013972,2]
[420883671,1776697844930,-1070.11,0.00013972,2]
[420883672,1776697844940,-500.0,0.00013972,2]
[420883673,1776697844950,-2382.24,0.00013972,2]
[420883674,1776697844960,-500.0,0.00013972,2]
[420883675,1776697844969,-636.81,0.00013972,2]
[420883676,1776697844978,-695.0,0.00013972,2]
[420883677,1776697844988,-500.0,0.00013972,2]
[420883678,1776697844997,-500.0,0.00013972,2]
[420883679,1776697845007,-1586.07,0.00013972,2]
[420883680,1776697845016,-500.0,0.00013972,2]
[420883681,1776697845026,-500.0,0.00013972,2]
[420883682,1776697845036,-2590.88,0.00013972,2]
[420883683,1776697845046,-2217.75,0.00013972,2]
[420883684,1776697845056,-500.0,0.00013973,2]
[420883685,1776697845065,-500.0,0.00013973,2]
[420883686,1776697845075,-500.0,0.00013973,2]
[420883687,1776697845084,-500.34722887,0.00013973,2]
[420883688,1776697845095,-500.0,0.00013973,2]
[420883689,1776697845104,-1190.0,0.00013973,2]
[420883690,1776697845114,-693.3919763,0.00013987,2]
[420883691,1776697845124,-719.04747942,0.00014042,2]
[420883692,1776697845133,-745.65223616,0.00014097,2]
[420883693,1776697845143,-160.0,0.0001412,7]
[420883694,1776697845153,-322.639575,0.0001412,7]
[420883695,1776697845171,-485.279151,0.0001412,7]
[420883696,1776697845185,-537.6845,0.0001415,2]
[420883697,1776697845194,-2230.315306,0.0001415,2]
[420883698,1776697845204,-773.2413689,0.00014152,2]
[420883699,1776697845214,-801.85129955,0.00014207,2]
[420883700,1776697845224,-500.0,0.00014246,2]
[420883701,1776697845234,-577.7,0.00014246,2]
[420883702,1776697845244,-554.97,0.00014246,2]
[420883703,1776697845255,-500.0,0.00014246,2]
[420883704,1776697845265,-1178.96,0.00014246,2]
[420883705,1776697845276,-500.0,0.00014246,2]
[420883706,1776697845285,-500.0,0.00014246,2]
[420883707,1776697845295,-500.0,0.00014246,2]
[420883708,1776697845306,-500.0,0.00014246,2]
[420883709,1776697845315,-668.58,0.00014246,2]
[420883710,1776697845325,-642.42,0.00014246,2]
[420883711,1776697845334,-500.0,0.00014246,2]
[420883712,1776697845345,-441.39378432,0.00014246,2]
[420883713,1776697845355,-500.0,0.00014246,2]
[420883714,1776697845365,-458.69953618,0.00014246,2]
[420883715,1776697845374,-563.13,0.00014246,2]
[420883716,1776697845384,-645.93,0.00014246,2]
[420883717,1776697845393,-568.36,0.00014246,2]
[420883718,1776697845403,-502.66,0.00014246,2]
[420883719,1776697845413,-500.0,0.00014246,2]
[420883720,1776697845423,-553.5,0.00014246,2]
[420883721,1776697845432,-620.23,0.00014246,2]
[420883722,1776697845442,-500.0,0.00014246,2]
[420883723,1776697845452,-631.41,0.00014246,2]
[420883724,1776697845462,-500.0,0.00014246,2]
[420883725,1776697845471,-552.19,0.00014246,2]
[420883726,1776697845481,-500.0,0.00014246,2]
[420883727,1776697845491,-776.9,0.00014246,2]
[420883728,1776697845500,-664.2,0.00014246,2]
[420883729,1776697845511,-500.0,0.00014246,2]
[420883730,1776697845520,-500.0,0.00014246,2]
[420883731,1776697845531,-1848.07,0.00014246,2]
[420883732,1776697845541,-500.0,0.00014246,2]
[420883733,1776697845551,-548.36,0.00014246,2]
[420883734,1776697845561,-500.0,0.00014246,2]
[420883735,1776697845571,-500.0,0.00014246,2]
[420883736,1776697845581,-259.99101527,0.00014246,2]
[420883737,1776697845591,-500.0,0.00014246,2]
[420883738,1776697845601,-500.0,0.00014246,2]
[420883739,1776697845611,-500.0,0.00014246,2]
[420883740,1776697845620,-500.0,0.00014246,2]
[420883741,1776697845630,-545.57,0.00014246,2]
[420883742,1776697845639,-407.16010586,0.00014246,2]
[420883743,1776697845649,-500.0,0.00014246,2]
[420883744,1776697845658,-500.0,0.00014246,2]
[420883745,1776697845667,-500.0,0.00014246,2]
[420883746,1776697845677,-500.0,0.00014246,2]
[420883747,1776697845687,-982.1,0.00014246,2]
[420883748,1776697845697,-1263.53,0.00014246,2]
[420883749,1776697845706,-500.0,0.00014246,2]
[420883750,1776697845716,-500.0,0.00014246,2]
[420883751,1776697845726,-500.0,0.00014246,2]
[420883752,1776697845735,-500.0,0.00014246,2]
[420883753,1776697845744,-1006.77,0.00014246,2]
[420883754,1776697845754,-500.0,0.00014246,2]
[420883755,1776697845764,-770.99,0.00014246,2]
[420883756,1776697845773,-620.25,0.00014246,2]
[420883757,1776697845783,-500.0,0.00014246,2]
[420883758,1776697845793,-500.0,0.00014246,2]
[420883759,1776697845803,-500.0,0.00014246,2]
[420883760,1776697845812,-1256.74,0.00014246,2]
[420883761,1776697845822,-500.0,0.00014246,2]
[420883762,1776697845832,-500.0,0.00014246,2]
[420883763,1776697845841,-500.0,0.00014246,2]
[420883764,1776697845851,-1379.71,0.00014246,2]
[420883765,1776697845861,-837.44,0.00014246,2]
[420883766,1776697845871,-637.93,0.00014246,2]
[420883767,1776697845881,-3026.39,0.00014246,2]
[420883768,1776697845891,-500.0,0.00014246,2]
[420883769,1776697845901,-500.0,0.00014246,2]
[420883770,1776697845911,-579.65,0.00014246,2]
[420883771,1776697845920,-500.0,0.00014246,2]
[420883772,1776697845930,-500.0,0.00014246,2]
[420883773,1776697845940,-5061.72,0.00014246,2]
[420883774,1776697845949,-704.3,0.00014246,2]
[420883775,1776697845959,-500.0,0.00014246,2]
[420883776,1776697845969,-7812.14,0.00014246,2]
[420883777,1776697845978,-7538.05,0.00014246,2]
[420883778,1776697845988,-500.0,0.00014246,2]
[420883779,1776697845997,-848.1,0.00014246,2]
[420883780,1776697846007,-500.0,0.00014246,2]
[420883781,1776697846017,-500.0,0.00014246,2]
[420883782,1776697846026,-500.0,0.00014246,2]
[420883783,1776697846036,-2149.31,0.00014246,2]
[420883784,1776697846046,-627.86,0.00014246,2]
[420883785,1776697846056,-637.71,0.00014246,2]
[420883786,1776697846065,-6266.9,0.00014246,2]
[420883787,1776697846075,-7087.87,0.00014246,2]
[420883788,1776697846085,-500.0,0.00014246,2]
[420883789,1776697846094,-500.0,0.00014246,2]
[420883790,1776697846104,-971.71,0.00014246,2]
[420883791,1776697846113,-11259.56,0.00014246,2]
[420883792,1776697846123,-1935.8,0.00014246,2]
[420883793,1776697846132,-500.0,0.00014246,2]
[420883794,1776697846142,-715.37,0.00014246,2]
[420883795,1776697846152,-500.0,0.00014246,2]
[420883796,1776697846163,-500.0,0.00014246,2]
[420883797,1776697846172,-500.0,0.00014246,2]
[420883798,1776697846182,-7668.58,0.00014246,2]
[420883799,1776697846191,-500.0,0.00014246,2]
[420883800,1776697846202,-500.0,0.00014246,2]
[420883801,1776697846210,-500.0,0.00014246,2]
[420883802,1776697846220,-2643.17,0.00014246,2]
[420883803,1776697846230,-885.04,0.00014246,2]
[420883804,1776697846240,-500.0,0.00014246,2]
[420883805,1776697846249,-500.0,0.00014246,2]
[420883806,1776697846259,-4773.32,0.00014246,2]
[420883807,1776697846268,-500.0,0.00014246,2]
[420883808,1776697846278,-1953.07,0.00014246,2]
[420883809,1776697846288,-1148.87,0.00014246,2]
[420883810,1776697846297,-6836.31,0.00014246,2]
[420883811,1776697846307,-1762.73,0.00014246,2]
[420883812,1776697846316,-579.88,0.00014246,2]
[420883813,1776697846327,-500.0,0.00014246,2]
[420883814,1776697846336,-739.06,0.00014246,2]
[420883815,1776697846347,-801.31,0.00014246,2]
[420883816,1776697846356,-2060.53,0.00014246,2]
[420883817,1776697846366,-500.0,0.00014246,2]
[420883818,1776697846375,-500.0,0.00014246,2]
[420883819,1776697846386,-500.0,0.00014246,2]
[420883820,1776697846395,-526.34,0.00014246,2]
[420883821,1776697846406,-500.0,0.00014246,2]
[420883822,1776697846415,-4284.21,0.00014246,2]
[420883823,1776697846426,-500.0,0.00014246,2]
[420883824,1776697846436,-500.0,0.00014246,2]
[420883825,1776697846446,-500.0,0.00014246,2]
[420883826,1776697846455,-500.0,0.00014246,2]
[420883827,1776697846465,-526.37,0.00014246,2]
[420883828,1776697846475,-500.0,0.00014246,2]
[420883829,1776697846485,-1760.36,0.00014246,2]
[420883830,1776697846495,-2347.23,0.00014246,2]
[420883831,1776697846504,-1333.42,0.00014246,2]
[420883832,1776697846515,-3594.48,0.00014246,2]
[420883834,1776697846524,-500.0,0.00014246,2]
[420883836,1776697846533,-500.0,0.00014246,2]
[420883838,1776697846542,-3450.81,0.00014246,2]
[420883840,1776697846551,-1177.09,0.00014246,2]
[420883841,1776697846561,-500.0,0.00014246,2]
[420883843,1776697846570,-2847.71,0.00014246,2]
[420883844,1776697846581,-630.91,0.00014246,2]
[420883845,1776697846590,-1156.2,0.00014246,2]
[420883847,1776697846599,-3459.64,0.00014246,2]
[420883849,1776697846609,-4857.33,0.00014246,2]
[420883850,1776697846618,-1683.9,0.00014246,2]
[420883851,1776697846627,-1156.56,0.00014246,2]
[420883852,1776697846636,-3548.37,0.00014246,2]
[420883853,1776697846646,-3285.0,0.00014246,2]
[420883854,1776697846655,-30083.02,0.00014246,2]
[420883855,1776697846665,-1070.11,0.00014246,2]
[420883856,1776697846674,-500.0,0.00014246,2]
[420883857,1776697846684,-2382.24,0.00014246,2]
[420883858,1776697846693,-500.0,0.00014246,2]
[420883859,1776697846703,-636.81,0.00014246,2]
[420883860,1776697846712,-695.0,0.00014246,2]
[420883861,1776697846721,-500.0,0.00014246,2]
[420883862,1776697846730,-500.0,0.00014246,2]
[420883863,1776697846739,-1586.07,0.00014246,2]
[420883864,1776697846748,-500.0,0.00014246,2]
[420883865,1776697846758,-500.0,0.00014246,2]
[420883866,1776697846767,-2590.88,0.00014246,2]
[420883867,1776697846776,-2217.75,0.00014246,2]
[420883868,1776697846786,-1190.0,0.00014247,2]
[420883869,1776697846795,-1073.02115369,0.00014247,2]
[420883870,1776697846805,-1000.0,0.00014247,2]
[420883871,1776697846814,-603.0634245,0.00014247,2]
[420883872,1776697846823,-2500.0,0.00014364,2]
[420883873,1776697846833,-2500.0,0.00014364,2]
[420883874,1776697846843,-2500.0,0.00014364,2]
[420883875,1776697846852,-607.031415,0.00014377,7]
[420883876,1776697846862,-3902.18188884,0.00014408,2]
[420883877,1776697846871,-23200.67112767,0.00014511,2]